[Event "Rapid della Domenica"]
[Site "Chess.com"]
[Date "2020.04.26"]
[Round "1"]
[White "GB86_CHESS"]
[Black "sergiodone"]
[Result "1-0"]
[WhiteElo "1616"]
[BlackElo "1516"]
[TimeControl "720+3"]
[EndTime "6:09:51 PDT"]
[Termination "GB86_CHESS ha vinto per abbandono"]

1. e4 {[%clk 0:11:50.5]} 1... c5 {[%clk 0:11:58]} 2. Nc3 {[%clk 0:11:50.1]} 2...
d6 {[%clk 0:11:56.7]} 3. f4 {[%clk 0:11:49]} 3... e6 {[%clk 0:11:58]} 4. Nf3
{[%clk 0:11:50.5]} 4... a6 {[%clk 0:11:57]} 5. a4 {[%clk 0:11:50.1]} 5... Nc6
{[%clk 0:11:58]} 6. Bc4 {[%clk 0:11:51.2]} 6... Be7 {[%clk 0:11:59.2]} 7. O-O
{[%clk 0:11:53.1]} 7... Bd7 {[%clk 0:11:57.5]} 8. d3 {[%clk 0:11:51]} 8... Nf6
{[%clk 0:11:57.9]} 9. f5 {[%clk 0:11:37.2]} 9... Nd4 {[%clk 0:11:54.1]} 10. Nxd4
{[%clk 0:11:36.7]} 10... cxd4 {[%clk 0:11:55.4]} 11. fxe6 {[%clk 0:11:34.3]}
11... dxc3 {[%clk 0:11:36.2]} 12. exd7+ {[%clk 0:11:30.1]} 12... Qxd7 {[%clk
0:11:34.2]} 13. bxc3 {[%clk 0:11:30.1]} 13... Qc7 {[%clk 0:11:35]} 14. Ba3
{[%clk 0:11:14.9]} 14... h5 {[%clk 0:11:28.1]} 15. Qf3 {[%clk 0:11:06.4]} 15...
Qb6+ {[%clk 0:11:25.9]} 16. Kh1 {[%clk 0:11:04.3]} 16... O-O {[%clk 0:10:44.5]}
17. e5 {[%clk 0:10:53.3]} 17... Ng4 {[%clk 0:10:11.5]} 18. Rab1 {[%clk 0:10:28]}
18... Qc6 {[%clk 0:09:27.3]} 19. e6 {[%clk 0:10:06.9]} 19... f5 {[%clk
0:09:19.2]} 20. Rxb7 {[%clk 0:09:59.1]} 20... Qxf3 {[%clk 0:09:07.7]} 21. gxf3
{[%clk 0:09:51.7]} 21... Ne3 {[%clk 0:09:03.9]} 22. Rg1 {[%clk 0:09:47]} 22...
Nxc4 {[%clk 0:09:04.5]} 23. Rxe7 {[%clk 0:09:44.7]} 23... Nxa3 {[%clk
0:08:59.8]} 24. Rgxg7+ {[%clk 0:09:44.8]} 1-0

[Event "Rapid della Domenica"]
[Site "Chess.com"]
[Date "2020.04.26"]
[Round "1"]
[White "toninoiuorio"]
[Black "crippo"]
[Result "0-1"]
[WhiteElo "1196"]
[BlackElo "1559"]
[TimeControl "720+3"]
[EndTime "6:11:15 PDT"]
[Termination "crippo ha vinto per scaccomatto"]

1. d4 {[%clk 0:12:01.6]} 1... d5 {[%clk 0:12:00.3]} 2. c4 {[%clk 0:12:03.4]}
2... c6 {[%clk 0:12:01.8]} 3. Nc3 {[%clk 0:12:05.4]} 3... Nf6 {[%clk 0:12:02.5]}
4. e3 {[%clk 0:12:07.4]} 4... e6 {[%clk 0:12:04.6]} 5. Bd3 {[%clk 0:12:09.2]}
5... Bb4 {[%clk 0:12:06.1]} 6. Nf3 {[%clk 0:12:09.8]} 6... O-O {[%clk
0:12:06.2]} 7. O-O {[%clk 0:12:11.3]} 7... Bxc3 {[%clk 0:12:07.2]} 8. bxc3
{[%clk 0:12:12.5]} 8... Ne4 {[%clk 0:12:09.2]} 9. Qc2 {[%clk 0:12:12.3]} 9... f5
{[%clk 0:12:11.1]} 10. cxd5 {[%clk 0:12:12.9]} 10... cxd5 {[%clk 0:12:11.8]} 11.
c4 {[%clk 0:12:14.2]} 11... Nc6 {[%clk 0:12:07]} 12. a3 {[%clk 0:12:13.3]} 12...
Ng5 {[%clk 0:11:59.4]} 13. Nxg5 {[%clk 0:12:12.1]} 13... Qxg5 {[%clk 0:12:00.3]}
14. e4 {[%clk 0:12:13.9]} 14... Qg6 {[%clk 0:11:56.8]} 15. exf5 {[%clk
0:12:11.9]} 15... exf5 {[%clk 0:11:57.6]} 16. cxd5 {[%clk 0:12:05.9]} 16... Nxd4
{[%clk 0:11:58.9]} 17. Qc4 {[%clk 0:11:56.6]} 17... Nf3+ {[%clk 0:11:53.9]} 18.
Kh1 {[%clk 0:11:58.2]} 18... Nh4 {[%clk 0:11:55.6]} 19. g3 {[%clk 0:11:56.7]}
19... Nf3 {[%clk 0:11:54.6]} 20. Bf4 {[%clk 0:11:50.3]} 20... Qh5 {[%clk
0:11:51.8]} 21. Kg2 {[%clk 0:11:45.9]} 21... Bd7 {[%clk 0:11:39.8]} 22. h4
{[%clk 0:11:43.5]} 22... Rac8 {[%clk 0:11:39.4]} 23. Qb4 {[%clk 0:11:34.4]}
23... g5 {[%clk 0:11:31.9]} 24. hxg5 {[%clk 0:11:28.7]} 24... Nxg5 {[%clk
0:11:27.1]} 25. Bxg5 {[%clk 0:11:27.6]} 25... Qxg5 {[%clk 0:11:28.5]} 26. Qxb7
{[%clk 0:11:22.9]} 26... Rcd8 {[%clk 0:11:03.8]} 27. f4 {[%clk 0:11:21]} 27...
Qg4 {[%clk 0:10:54.5]} 28. Rae1 {[%clk 0:11:16.9]} 28... Qg7 {[%clk 0:10:53]}
29. Qxa7 {[%clk 0:10:54.6]} 29... Qc3 {[%clk 0:10:52.5]} 30. Re3 {[%clk
0:10:23.9]} 30... Rf7 {[%clk 0:10:01]} 31. Qb6 {[%clk 0:10:04]} 31... Rdf8
{[%clk 0:10:00.5]} 32. Qb4 {[%clk 0:09:57.2]} 32... Qc8 {[%clk 0:09:43]} 33.
Rfe1 {[%clk 0:09:41.4]} 33... Qa8 {[%clk 0:09:43.2]} 34. Qd4 {[%clk 0:09:17.5]}
34... Qxa3 {[%clk 0:09:34.9]} 35. Bxf5 {[%clk 0:09:13.7]} 35... Qa2+ {[%clk
0:09:35.6]} 36. R1e2 {[%clk 0:09:14.1]} 36... Qa8 {[%clk 0:09:19.3]} 37. Be6
{[%clk 0:08:53.2]} 37... Bxe6 {[%clk 0:09:17.6]} 38. Rxe6 {[%clk 0:08:54.3]}
38... Rg7 {[%clk 0:09:16.9]} 39. Qe4 {[%clk 0:08:42.3]} 39... Qa3 {[%clk
0:09:08]} 40. d6 {[%clk 0:08:40.5]} 40... Qxg3+ {[%clk 0:09:07.1]} 41. Kf1
{[%clk 0:08:41.1]} 41... Rxf4+ {[%clk 0:09:06.6]} 42. Qxf4 {[%clk 0:08:41.4]}
42... Qxf4+ {[%clk 0:09:08]} 43. Ke1 {[%clk 0:08:42.8]} 43... Rg1# {[%clk
0:09:05.1]} 0-1

[Event "Rapid della Domenica"]
[Site "Chess.com"]
[Date "2020.04.26"]
[Round "1"]
[White "giulioscaglione"]
[Black "pedrak"]
[Result "0-1"]
[WhiteElo "1288"]
[BlackElo "1687"]
[TimeControl "720+3"]
[EndTime "6:15:20 PDT"]
[Termination "pedrak ha vinto per scaccomatto"]

1. b3 {[%clk 0:12:01.8]} 1... d5 {[%clk 0:11:59.9]} 2. Bb2 {[%clk 0:12:02.9]}
2... Bf5 {[%clk 0:12:00.9]} 3. e3 {[%clk 0:12:00.8]} 3... e6 {[%clk 0:12:02.2]}
4. Be2 {[%clk 0:11:44.9]} 4... Nf6 {[%clk 0:12:03]} 5. Bf3 {[%clk 0:11:46]} 5...
Be7 {[%clk 0:11:59.1]} 6. Ne2 {[%clk 0:11:47.2]} 6... O-O {[%clk 0:11:59.9]} 7.
Ng3 {[%clk 0:11:48.9]} 7... Bg6 {[%clk 0:12:00.9]} 8. d3 {[%clk 0:11:47.1]} 8...
Nbd7 {[%clk 0:12:00]} 9. Nd2 {[%clk 0:11:48.4]} 9... c6 {[%clk 0:12:00.5]} 10.
O-O {[%clk 0:11:38.5]} 10... Qc7 {[%clk 0:12:01.1]} 11. Re1 {[%clk 0:11:31.9]}
11... Rad8 {[%clk 0:11:48.6]} 12. e4 {[%clk 0:10:39.1]} 12... dxe4 {[%clk
0:11:47.9]} 13. Ngxe4 {[%clk 0:10:38.8]} 13... Nxe4 {[%clk 0:11:43.7]} 14. Bxe4
{[%clk 0:10:35.8]} 14... Bf6 {[%clk 0:11:44.4]} 15. Bxf6 {[%clk 0:10:29.5]}
15... Nxf6 {[%clk 0:11:45.2]} 16. Bxg6 {[%clk 0:10:24.6]} 16... hxg6 {[%clk
0:11:46.4]} 17. Qe2 {[%clk 0:10:09.2]} 17... Rd5 {[%clk 0:11:40.8]} 18. Ne4
{[%clk 0:10:02.1]} 18... Rfd8 {[%clk 0:11:30.4]} 19. Nxf6+ {[%clk 0:10:02.5]}
19... gxf6 {[%clk 0:11:31.5]} 20. g3 {[%clk 0:09:33.6]} 20... Kg7 {[%clk
0:11:31.6]} 21. Rad1 {[%clk 0:09:13.1]} 21... Rh8 {[%clk 0:11:18.7]} 22. c4
{[%clk 0:08:48.5]} 22... Rdh5 {[%clk 0:11:18.7]} 23. h4 {[%clk 0:08:34.5]} 23...
c5 {[%clk 0:10:53.8]} 24. f4 {[%clk 0:08:12.9]} 24... g5 {[%clk 0:10:47.4]} 25.
fxg5 {[%clk 0:08:05]} 25... Qxg3+ {[%clk 0:10:48.1]} 26. Qg2 {[%clk 0:08:01.3]}
26... Qxh4 {[%clk 0:10:48.9]} 27. gxf6+ {[%clk 0:07:49.1]} 27... Kf8 {[%clk
0:10:34.3]} 28. Qg7+ {[%clk 0:06:15.6]} 28... Ke8 {[%clk 0:10:31.7]} 29. Rxe6+
{[%clk 0:06:04.9]} 29... Kd8 {[%clk 0:10:23.5]} 30. Rd6+ {[%clk 0:04:47.3]}
30... Kc8 {[%clk 0:10:23.1]} 31. Kf1 {[%clk 0:03:31.6]} 31... Qf4+ {[%clk
0:10:17.5]} 32. Ke2 {[%clk 0:03:16.2]} 32... Rh2+ {[%clk 0:10:13.6]} 33. Ke1
{[%clk 0:03:09.5]} 33... Qe3+ {[%clk 0:10:08.5]} 34. Kf1 {[%clk 0:02:47.2]}
34... Qf2# {[%clk 0:10:09.8]} 0-1

[Event "Rapid della Domenica"]
[Site "Chess.com"]
[Date "2020.04.26"]
[Round "1"]
[White "caramante"]
[Black "SanSecondoPR"]
[Result "1-0"]
[WhiteElo "1599"]
[BlackElo "1266"]
[TimeControl "720+3"]
[EndTime "6:18:15 PDT"]
[Termination "caramante ha vinto per abbandono"]

1. Nf3 {[%clk 0:11:54.5]} 1... d5 {[%clk 0:11:56.3]} 2. d4 {[%clk 0:11:55.6]}
2... Nc6 {[%clk 0:11:57.2]} 3. g3 {[%clk 0:11:56.7]} 3... Bg4 {[%clk 0:11:56.7]}
4. Bg2 {[%clk 0:11:57.9]} 4... Nf6 {[%clk 0:11:46.9]} 5. c3 {[%clk 0:11:59.5]}
5... Bxf3 {[%clk 0:11:39.4]} 6. Bxf3 {[%clk 0:11:58.5]} 6... e5 {[%clk
0:11:34.6]} 7. dxe5 {[%clk 0:11:56.5]} 7... Nxe5 {[%clk 0:11:34.3]} 8. Bg2
{[%clk 0:11:58.3]} 8... Be7 {[%clk 0:11:29.6]} 9. O-O {[%clk 0:11:59.1]} 9...
O-O {[%clk 0:11:29.9]} 10. Re1 {[%clk 0:12:00.1]} 10... c6 {[%clk 0:11:30.5]}
11. Nd2 {[%clk 0:11:56]} 11... Qb6 {[%clk 0:11:26.6]} 12. Nf3 {[%clk 0:11:53.8]}
12... Nc4 {[%clk 0:11:14.1]} 13. b3 {[%clk 0:11:43.4]} 13... Nd6 {[%clk
0:11:09]} 14. Be3 {[%clk 0:11:40.4]} 14... c5 {[%clk 0:11:04.2]} 15. Rc1 {[%clk
0:11:37]} 15... Nde4 {[%clk 0:10:56]} 16. Ng5 {[%clk 0:11:25]} 16... Rad8 {[%clk
0:10:45.2]} 17. Nxe4 {[%clk 0:11:23.9]} 17... Nxe4 {[%clk 0:10:30.3]} 18. Qc2
{[%clk 0:11:21.6]} 18... Qf6 {[%clk 0:10:21.5]} 19. Bxe4 {[%clk 0:11:13.3]}
19... dxe4 {[%clk 0:10:17.5]} 20. Qxe4 {[%clk 0:11:13.9]} 20... Bd6 {[%clk
0:10:13]} 21. Qxb7 {[%clk 0:11:01.4]} 21... h5 {[%clk 0:10:01.2]} 22. Qg2 {[%clk
0:10:15.1]} 22... Be7 {[%clk 0:09:18.9]} 23. c4 {[%clk 0:10:10.1]} 23... Qa6
{[%clk 0:09:00.2]} 24. Rc2 {[%clk 0:09:50.3]} 24... Qg6 {[%clk 0:08:55.2]} 25.
Rd2 {[%clk 0:09:44.5]} 25... Rc8 {[%clk 0:08:47.7]} 26. Red1 {[%clk 0:09:41.2]}
26... Bf6 {[%clk 0:08:36.6]} 27. Rd5 {[%clk 0:09:36.2]} 27... Qc2 {[%clk
0:08:30]} 28. R5d2 {[%clk 0:09:00.4]} 28... Qg6 {[%clk 0:08:24.6]} 29. h4 {[%clk
0:08:58.4]} 29... Bc3 {[%clk 0:08:17.8]} 30. Rd3 {[%clk 0:08:50.7]} 30... Bd4
{[%clk 0:07:56]} 31. Bxd4 {[%clk 0:08:49]} 31... cxd4 {[%clk 0:07:56.3]} 32.
Rxd4 {[%clk 0:08:49.8]} 32... Qc2 {[%clk 0:07:43.7]} 33. R1d2 {[%clk 0:08:48.4]}
33... Qb1+ {[%clk 0:07:40.8]} 34. Kh2 {[%clk 0:08:49.4]} 34... Qf5 {[%clk
0:07:25.9]} 35. e4 {[%clk 0:08:45.6]} 35... Qg4 {[%clk 0:07:15.5]} 36. f3 {[%clk
0:08:46.3]} 36... Qe6 {[%clk 0:07:09.3]} 37. Rd5 {[%clk 0:08:34]} 37... Kh8
{[%clk 0:06:47]} 38. Rxh5+ {[%clk 0:08:32.2]} 38... Kg8 {[%clk 0:06:45.9]} 39.
Rhd5 {[%clk 0:08:31.3]} 39... Qh6 {[%clk 0:06:35.3]} 40. f4 {[%clk 0:08:24.6]}
40... Rc6 {[%clk 0:06:23.9]} 41. e5 {[%clk 0:08:14.2]} 41... Rg6 {[%clk
0:06:19.7]} 42. Rd6 {[%clk 0:08:04]} 42... f6 {[%clk 0:06:08.4]} 43. Qe4 {[%clk
0:07:43.8]} 43... Qh5 {[%clk 0:05:55.6]} 44. exf6 {[%clk 0:07:25.7]} 44... Qg4
{[%clk 0:05:44.4]} 45. Qe6+ {[%clk 0:07:23]} 45... Qxe6 {[%clk 0:05:38.6]} 46.
Rxe6 {[%clk 0:07:23.3]} 46... Kf7 {[%clk 0:05:30.7]} 47. f5 {[%clk 0:07:17.8]}
47... Rg4 {[%clk 0:05:27.3]} 48. Rd7+ {[%clk 0:07:14.2]} 48... Kg8 {[%clk
0:05:22]} 49. Kh3 {[%clk 0:07:10.9]} 1-0

[Event "Rapid della Domenica"]
[Site "Chess.com"]
[Date "2020.04.26"]
[Round "1"]
[White "donaldnecesito"]
[Black "sirmale49"]
[Result "0-1"]
[WhiteElo "1682"]
[BlackElo "1406"]
[TimeControl "720+3"]
[EndTime "6:21:29 PDT"]
[Termination "sirmale49 ha vinto per abbandono"]

1. e4 {[%clk 0:12:00.5]} 1... e5 {[%clk 0:11:59.7]} 2. Nf3 {[%clk 0:12:02.3]}
2... Nc6 {[%clk 0:12:01]} 3. Bb5 {[%clk 0:12:04.8]} 3... d6 {[%clk 0:12:01.6]}
4. c3 {[%clk 0:11:52.1]} 4... Bg4 {[%clk 0:12:01.2]} 5. h3 {[%clk 0:11:49.3]}
5... Bd7 {[%clk 0:12:00.9]} 6. O-O {[%clk 0:11:43.8]} 6... a6 {[%clk 0:12:00.3]}
7. Ba4 {[%clk 0:11:45.5]} 7... Nf6 {[%clk 0:11:58.5]} 8. d3 {[%clk 0:11:44.8]}
8... Be7 {[%clk 0:11:57.9]} 9. Re1 {[%clk 0:11:29.3]} 9... O-O {[%clk
0:11:57.5]} 10. d4 {[%clk 0:11:27.7]} 10... b5 {[%clk 0:11:34.8]} 11. Bc2 {[%clk
0:11:26]} 11... Ne8 {[%clk 0:11:05]} 12. d5 {[%clk 0:11:26.1]} 12... Na5 {[%clk
0:10:59.3]} 13. a4 {[%clk 0:11:19]} 13... Nc4 {[%clk 0:10:53.3]} 14. b3 {[%clk
0:11:13.8]} 14... Nb6 {[%clk 0:10:38.1]} 15. a5 {[%clk 0:11:15.6]} 15... Nc8
{[%clk 0:10:29.8]} 16. b4 {[%clk 0:11:17.5]} 16... c5 {[%clk 0:10:03.8]} 17.
dxc6 {[%clk 0:11:17.9]} 17... Bxc6 {[%clk 0:10:02.5]} 18. Bb3 {[%clk 0:11:19]}
18... Nf6 {[%clk 0:09:39.5]} 19. Nbd2 {[%clk 0:11:14.6]} 19... Na7 {[%clk
0:08:51.7]} 20. c4 {[%clk 0:10:33.8]} 20... bxc4 {[%clk 0:08:43.8]} 21. Bxc4
{[%clk 0:10:35.3]} 21... Nb5 {[%clk 0:08:37.3]} 22. Bb2 {[%clk 0:10:26.1]} 22...
Nc7 {[%clk 0:07:52.1]} 23. Rc1 {[%clk 0:10:20]} 23... Rc8 {[%clk 0:07:45.4]} 24.
Ng5 {[%clk 0:10:15.5]} 24... Bd7 {[%clk 0:07:01.1]} 25. Qb3 {[%clk 0:09:57.9]}
25... Qe8 {[%clk 0:06:04.5]} 26. Bxf7+ {[%clk 0:09:40.5]} 26... Rxf7 {[%clk
0:06:01.9]} 27. Nxf7 {[%clk 0:09:42.2]} 27... Qxf7 {[%clk 0:06:01.3]} 28. Qe3
{[%clk 0:09:14.3]} 28... h6 {[%clk 0:05:31.8]} 29. Qa7 {[%clk 0:09:07.6]} 29...
Bd8 {[%clk 0:05:10.2]} 30. Nc4 {[%clk 0:09:08.2]} 30... Nb5 {[%clk 0:04:32.8]}
31. Qxa6 {[%clk 0:07:58.3]} 31... Rxc4 {[%clk 0:04:27.6]} 32. Rxc4 {[%clk
0:07:59.5]} 32... Qxc4 {[%clk 0:04:25.8]} 33. Qa8 {[%clk 0:07:47.1]} 33... Qc8
{[%clk 0:03:28.1]} 34. Qxc8 {[%clk 0:07:34.8]} 34... Bxc8 {[%clk 0:03:26.9]} 35.
Rc1 {[%clk 0:07:33.5]} 35... Bc7 {[%clk 0:02:52]} 36. f3 {[%clk 0:07:12.7]}
36... Nh5 {[%clk 0:02:23]} 37. Kf2 {[%clk 0:06:51.8]} 37... Nf4 {[%clk
0:02:21.2]} 38. Rc4 {[%clk 0:05:42.3]} 38... Nd3+ {[%clk 0:02:14.4]} 0-1

[Event "Rapid della Domenica"]
[Site "Chess.com"]
[Date "2020.04.26"]
[Round "1"]
[White "MarcoCiva"]
[Black "fausto2p"]
[Result "1-0"]
[WhiteElo "1512"]
[BlackElo "1040"]
[TimeControl "720+3"]
[EndTime "6:21:32 PDT"]
[Termination "MarcoCiva ha vinto per tempo"]

1. d4 {[%clk 0:11:59.2]} 1... d5 {[%clk 0:12:00.3]} 2. c4 {[%clk 0:11:58.6]}
2... c6 {[%clk 0:12:00]} 3. Nc3 {[%clk 0:11:58.7]} 3... Nf6 {[%clk 0:12:00]} 4.
Bf4 {[%clk 0:11:56.7]} 4... Qb6 {[%clk 0:11:42.5]} 5. b3 {[%clk 0:11:49.4]} 5...
e6 {[%clk 0:11:04.2]} 6. e3 {[%clk 0:11:35.9]} 6... Bb4 {[%clk 0:11:03.3]} 7.
Rc1 {[%clk 0:11:15.2]} 7... Qa5 {[%clk 0:10:58.5]} 8. Ne2 {[%clk 0:11:08.4]}
8... O-O {[%clk 0:09:58.5]} 9. Qc2 {[%clk 0:11:00.9]} 9... Nbd7 {[%clk
0:07:48.4]} 10. cxd5 {[%clk 0:10:31.6]} 10... Nxd5 {[%clk 0:07:46.3]} 11. g3
{[%clk 0:09:50.4]} 11... N7f6 {[%clk 0:07:41.1]} 12. Bg2 {[%clk 0:09:28]} 12...
Nxc3 {[%clk 0:07:39]} 13. Nxc3 {[%clk 0:09:24.6]} 13... Nd5 {[%clk 0:07:05.3]}
14. Bxd5 {[%clk 0:09:21.1]} 14... Qxd5 {[%clk 0:06:41.1]} 15. O-O {[%clk
0:09:16.9]} 15... Bxc3 {[%clk 0:06:19.9]} 16. Qxc3 {[%clk 0:09:16.3]} 16... e5
{[%clk 0:05:53.6]} 17. Bxe5 {[%clk 0:07:30.3]} 17... Bh3 {[%clk 0:05:50.7]} 18.
e4 {[%clk 0:07:30.7]} 18... Qxe4 {[%clk 0:05:39.8]} 19. f3 {[%clk 0:07:32.5]}
19... Qd5 {[%clk 0:05:16.9]} 20. Rfe1 {[%clk 0:07:16.8]} 20... f6 {[%clk
0:04:57.3]} 21. Bc7 {[%clk 0:07:00.6]} 21... g5 {[%clk 0:04:07.2]} 22. g4 {[%clk
0:06:48.1]} 22... f5 {[%clk 0:03:53.8]} 23. Re5 {[%clk 0:06:40.5]} 23... Qf7
{[%clk 0:03:10.5]} 24. Bd6 {[%clk 0:06:03.8]} 24... Qf6 {[%clk 0:01:38]} 25.
Rxf5 {[%clk 0:06:01.8]} 25... Qxd6 {[%clk 0:01:32.1]} 26. Rxg5+ {[%clk
0:05:56.9]} 26... Kh8 {[%clk 0:00:21.4]} 27. Rh5 {[%clk 0:05:58.5]} 27... Qf4
{[%clk 0:00:07.5]} 28. Rxh3 {[%clk 0:05:55.6]} 1-0

[Event "Rapid della Domenica"]
[Site "Chess.com"]
[Date "2020.04.26"]
[Round "1"]
[White "markk000"]
[Black "Luca090267"]
[Result "0-1"]
[WhiteElo "1523"]
[BlackElo "1396"]
[TimeControl "720+3"]
[EndTime "6:24:10 PDT"]
[Termination "Luca090267 ha vinto per scaccomatto"]

1. d4 {[%clk 0:11:50.5]} 1... Nf6 {[%clk 0:12:01]} 2. c4 {[%clk 0:11:48.1]} 2...
g6 {[%clk 0:12:03]} 3. Nc3 {[%clk 0:11:49.7]} 3... Bg7 {[%clk 0:12:04.2]} 4. e4
{[%clk 0:11:51.7]} 4... d6 {[%clk 0:12:03.4]} 5. Nf3 {[%clk 0:11:53.7]} 5... O-O
{[%clk 0:12:04.9]} 6. Be2 {[%clk 0:11:53.2]} 6... e5 {[%clk 0:12:01.6]} 7. d5
{[%clk 0:11:54.3]} 7... Nbd7 {[%clk 0:11:58.2]} 8. O-O {[%clk 0:11:54.5]} 8...
a5 {[%clk 0:11:59.9]} 9. Be3 {[%clk 0:11:53.8]} 9... Nc5 {[%clk 0:12:01]} 10.
Bxc5 {[%clk 0:11:49.3]} 10... dxc5 {[%clk 0:12:02.3]} 11. h3 {[%clk 0:11:44.2]}
11... Re8 {[%clk 0:11:57.6]} 12. Qc2 {[%clk 0:11:44.3]} 12... b6 {[%clk
0:11:47.5]} 13. Rad1 {[%clk 0:11:39.2]} 13... Bb7 {[%clk 0:11:41]} 14. Nb5
{[%clk 0:11:38.7]} 14... Qd7 {[%clk 0:11:33.2]} 15. d6 {[%clk 0:11:09.9]} 15...
Bxe4 {[%clk 0:11:21.4]} 16. Qc3 {[%clk 0:10:52.3]} 16... c6 {[%clk 0:11:13.3]}
17. Nc7 {[%clk 0:10:50.1]} 17... Bxf3 {[%clk 0:10:49.5]} 18. Bxf3 {[%clk
0:10:46.6]} 18... e4 {[%clk 0:10:51.5]} 19. Nxa8 {[%clk 0:10:07.5]} 19... Rxa8
{[%clk 0:10:39]} 20. Be2 {[%clk 0:09:58.9]} 20... Nd5 {[%clk 0:09:43.7]} 21. Qg3
{[%clk 0:09:17.2]} 21... Nb4 {[%clk 0:08:51.8]} 22. a3 {[%clk 0:08:50.2]} 22...
Nc2 {[%clk 0:08:37.5]} 23. Bg4 {[%clk 0:07:36]} 23... f5 {[%clk 0:08:29.3]} 24.
Be2 {[%clk 0:07:36.9]} 24... Nd4 {[%clk 0:08:23.7]} 25. Rfe1 {[%clk 0:07:30]}
25... Rd8 {[%clk 0:08:20.2]} 26. f3 {[%clk 0:06:52.5]} 26... Qxd6 {[%clk
0:07:40.5]} 27. Qxd6 {[%clk 0:06:51]} 27... Rxd6 {[%clk 0:07:40]} 28. Kf2 {[%clk
0:06:35.4]} 28... exf3 {[%clk 0:06:44]} 29. Bxf3 {[%clk 0:06:32.2]} 29... Kf7
{[%clk 0:06:45.1]} 30. g4 {[%clk 0:06:22.3]} 30... fxg4 {[%clk 0:05:13]} 31.
Bxg4 {[%clk 0:06:18.7]} 31... Rf6+ {[%clk 0:04:40.5]} 32. Kg2 {[%clk 0:06:14.1]}
32... h5 {[%clk 0:04:36.5]} 33. Bd7 {[%clk 0:05:37]} 33... Rd6 {[%clk
0:01:33.3]} 34. Be8+ {[%clk 0:05:25.3]} 34... Kf6 {[%clk 0:01:29.3]} 35. Rf1+
{[%clk 0:05:14.7]} 35... Kg5 {[%clk 0:01:29.2]} 36. Rf7 {[%clk 0:04:36.1]} 36...
Be5 {[%clk 0:01:23.4]} 37. Rd7 {[%clk 0:04:29.6]} 37... Rxd7 {[%clk 0:01:22.9]}
38. Bxd7 {[%clk 0:04:32.5]} 38... Kh6 {[%clk 0:01:20.2]} 39. Re1 {[%clk
0:04:29.2]} 39... Bf4 {[%clk 0:01:13]} 40. Re8 {[%clk 0:04:21.4]} 40... Bc1
{[%clk 0:01:10.5]} 41. h4 {[%clk 0:04:22.8]} 41... Bxb2 {[%clk 0:01:06.2]} 42.
Rh8+ {[%clk 0:04:23.5]} 42... Kg7 {[%clk 0:01:06.8]} 43. Rb8 {[%clk 0:04:23.6]}
43... Bxa3 {[%clk 0:01:06]} 44. Rxb6 {[%clk 0:04:23.7]} 44... Bb4 {[%clk
0:01:07.4]} 45. Bxc6 {[%clk 0:04:23.8]} 45... Nxc6 {[%clk 0:01:08.4]} 46. Rxc6
{[%clk 0:04:26.7]} 46... Kh6 {[%clk 0:01:08]} 47. Kf3 {[%clk 0:04:27.2]} 47...
Kg7 {[%clk 0:01:08.9]} 48. Kf4 {[%clk 0:04:28.8]} 48... Kf7 {[%clk 0:01:10.4]}
49. Kg5 {[%clk 0:04:30]} 49... Bd2# {[%clk 0:01:10.5]} 0-1

[Event "Rapid della Domenica"]
[Site "Chess.com"]
[Date "2020.04.26"]
[Round "1"]
[White "bellapero"]
[Black "Carbon"]
[Result "0-1"]
[WhiteElo "1466"]
[BlackElo "1790"]
[TimeControl "720+3"]
[EndTime "6:24:54 PDT"]
[Termination "Carbon ha vinto per tempo"]

1. e4 {[%clk 0:12:01.5]} 1... e6 {[%clk 0:12:01]} 2. d4 {[%clk 0:11:58.8]} 2...
d5 {[%clk 0:12:02.6]} 3. exd5 {[%clk 0:11:46.4]} 3... exd5 {[%clk 0:12:03.8]} 4.
Nf3 {[%clk 0:11:43.2]} 4... Bd6 {[%clk 0:11:59.9]} 5. Nc3 {[%clk 0:11:30.3]}
5... c6 {[%clk 0:11:58]} 6. Bd3 {[%clk 0:11:14.1]} 6... Nf6 {[%clk 0:11:45.3]}
7. O-O {[%clk 0:11:01.5]} 7... O-O {[%clk 0:11:46.5]} 8. h3 {[%clk 0:10:51.1]}
8... Nbd7 {[%clk 0:11:41.5]} 9. Re1 {[%clk 0:10:44.1]} 9... Qc7 {[%clk
0:11:29.9]} 10. Be3 {[%clk 0:10:09.1]} 10... Nb6 {[%clk 0:11:09.8]} 11. Bg5
{[%clk 0:09:36.6]} 11... Nbd7 {[%clk 0:10:13.2]} 12. Qd2 {[%clk 0:09:23.7]}
12... b5 {[%clk 0:10:04.6]} 13. b3 {[%clk 0:08:56]} 13... Bb7 {[%clk 0:09:21.9]}
14. Nh4 {[%clk 0:07:59.5]} 14... Nh5 {[%clk 0:07:52.8]} 15. Be7 {[%clk
0:07:21.8]} 15... Rfe8 {[%clk 0:06:56.4]} 16. Bxd6 {[%clk 0:07:11]} 16... Qxd6
{[%clk 0:06:54]} 17. Nf5 {[%clk 0:06:58.8]} 17... Qf4 {[%clk 0:06:29.5]} 18.
Rxe8+ {[%clk 0:06:42.6]} 18... Rxe8 {[%clk 0:06:26]} 19. Qxf4 {[%clk 0:06:11.3]}
19... Nxf4 {[%clk 0:06:25.3]} 20. Nd6 {[%clk 0:05:53]} 20... Rb8 {[%clk
0:06:09.4]} 21. Nxb7 {[%clk 0:05:45]} 21... Nxd3 {[%clk 0:05:49.3]} 22. cxd3
{[%clk 0:05:09.5]} 22... Rxb7 {[%clk 0:05:47.2]} 23. Re1 {[%clk 0:05:04.4]}
23... Kf8 {[%clk 0:05:47.5]} 24. Ne2 {[%clk 0:04:48]} 24... Nb8 {[%clk
0:05:18.5]} 25. Ng3 {[%clk 0:04:40.7]} 25... g6 {[%clk 0:05:12.6]} 26. f4 {[%clk
0:04:25]} 26... Re7 {[%clk 0:05:10.6]} 27. Rxe7 {[%clk 0:04:10.2]} 27... Kxe7
{[%clk 0:05:11.2]} 28. f5 {[%clk 0:03:54.1]} 28... Kf6 {[%clk 0:05:07.9]} 29.
fxg6 {[%clk 0:03:47.3]} 29... hxg6 {[%clk 0:05:06.5]} 30. b4 {[%clk 0:03:30.5]}
30... Kg5 {[%clk 0:04:58.1]} 31. Kf2 {[%clk 0:03:25.6]} 31... Nd7 {[%clk
0:04:53.5]} 32. a3 {[%clk 0:03:10.1]} 32... Nb6 {[%clk 0:04:46.1]} 33. Ne2
{[%clk 0:02:47.6]} 33... Nc8 {[%clk 0:04:25.9]} 34. Nc3 {[%clk 0:02:35.1]} 34...
Nd6 {[%clk 0:04:21.9]} 35. Ne2 {[%clk 0:01:57.5]} 35... Nf5 {[%clk 0:04:02.3]}
36. Kg1 {[%clk 0:00:54.9]} 36... Ng7 {[%clk 0:03:48.4]} 37. Kf2 {[%clk
0:00:52.4]} 37... Ne6 {[%clk 0:03:45.7]} 38. g3 {[%clk 0:00:29.7]} 38... f5
{[%clk 0:03:38.9]} 0-1